bitfinex/quotes_SOLUSD_20251120
["timestamp","ask_amount","ask_price","bid_price","bid_amount"]
[1763647558446,49.83549721,139.92,139.91,1e-08]
[1763647559136,51.59549721,139.92,139.91,1e-08]
[1763647560337,55.30408156,139.92,139.81,17.88068049]
[1763647560522,7.07938421,139.88,139.82,14.23143684]
[1763647560722,0.7,139.97,139.82,24.53218422]
[1763647560922,7.76430875,140.01,139.92,7.07938421]
[1763647560923,7.14234697,140.01,139.92,7.07938421]
[1763647561155,1.76,140.0,139.94,7.07938421]
[1763647561470,7.07938421,139.98,139.86,1.99999999]
[1763647561623,1.76,139.97,139.84,7.07938421]
[1763647561825,1.76,139.97,139.91,7.07938421]
[1763647562027,8.83938421,139.97,139.91,7.07938421]
[1763647562263,7.14379878,139.99,139.89,17.8700414]
[1763647562443,1.76,139.96,139.92,7.07938421]
[1763647562758,1.76,139.97,139.93,0.71]
[1763647562984,1.76,139.97,139.86,25.2705248]
[1763647563130,7.07938421,139.94,139.9,0.71]
[1763647563330,1.76,139.93,139.9,0.71]
[1763647563570,7.14345541,139.99,139.91,7.07938421]
[1763647563864,7.14132685,140.03,139.95,7.07938421]
[1763647564031,0.2,140.06,139.97,7.07938421]
[1763647564032,1.76,140.02,139.97,7.07938421]
[1763647564226,8.85938421,140.01,139.98,0.71]
[1763647564434,7.07938421,139.99,139.93,7.07938421]
[1763647564636,1.76,140.0,139.91,0.71]
[1763647564827,7.07938421,140.0,139.94,7.07938421]
[1763647565027,1.76,139.99,139.94,7.07938421]
[1763647565228,1.76,139.99,139.95,0.71]
[1763647565477,7.07938421,139.98,139.92,7.07938421]
[1763647565636,1.76,139.99,139.94,7.07938421]
[1763647565835,8.83938421,139.99,139.94,7.07938421]
[1763647566135,8.83938421,139.99,139.95,0.71]
[1763647566327,14.2232619,139.98,139.95,0.71]
[1763647566525,7.07938421,139.98,139.93,0.71]
[1763647566784,7.07938421,139.98,139.93,7.78938421]
[1763647567091,1.76,139.97,139.95,7.07938421]
[1763647567260,1.76,139.97,139.94,0.71]
[1763647567657,1.76,139.97,139.94,7.78938421]
[1763647569893,12.35817854,139.97,139.91,13.06817854]
[1763647570057,1.78,139.97,139.94,12.35817854]
[1763647570270,1.78,139.97,139.94,7.14577086]
[1763647570464,1.78,139.97,139.94,7.85577086]
[1763647570871,1.78,139.97,139.95,0.71]
[1763647571179,8.92440598,139.97,139.9,0.71]
[1763647571358,1.78,139.97,139.92,12.35817854]
[1763647571555,7.84489854,139.96,139.84,0.71]
[1763647571762,12.35817854,139.9,139.85,0.71]
[1763647572062,1.78,139.89,139.85,13.06817854]
[1763647572280,1.78,139.88,139.86,12.35817854]
[1763647572583,1.78,139.89,139.86,0.71]
[1763647572766,12.35817854,139.91,139.87,0.71]
[1763647572991,1.78,139.9,139.87,0.71]
[1763647573275,1.78,139.9,139.87,13.06817854]
[1763647573467,1.78,139.9,139.87,0.71]
[1763647573680,0.7,140.0,139.89,12.35817854]
[1763647573866,12.35817854,139.96,139.91,12.35817854]
[1763647574061,1.78,139.95,139.9,13.06817854]
[1763647574377,1.78,139.95,139.91,7.14745193]
[1763647574582,21.28368665,139.95,139.86,17.87470622]
[1763647574777,9.62550811,139.95,139.88,12.35817854]
[1763647574966,12.35817854,139.91,139.87,0.71]
[1763647575199,1.78,139.9,139.87,0.71]
[1763647575364,1.78,139.89,139.87,0.71]
[1763647575564,1.78,139.89,139.87,13.06817854]
[1763647575886,1.78,139.89,139.88,0.71]
[1763647576075,1.78,139.9,139.88,0.71]
[1763647576475,8.92804832,139.9,139.88,0.71]
[1763647576679,8.92804832,139.9,139.86,7.1499902]
[1763647576984,8.92804832,139.9,139.85,20.21854833]
[1763647577178,8.92804832,139.9,139.86,13.06817854]
[1763647577179,1.78,139.9,139.86,13.06817854]
[1763647577379,1.78,139.9,139.85,7.15036979]
[1763647577380,1.78,139.9,139.87,13.06817854]
[1763647577582,1.78,139.9,139.88,0.71]
[1763647578472,1.76,139.9,139.88,0.71]
[1763647578676,1.76,139.9,139.88,7.8588842]
[1763647578980,12.35817854,139.93,139.88,7.8588842]
[1763647579183,1.76,139.92,139.89,0.71]
[1763647579883,12.35817854,139.93,139.89,0.71]
[1763647579884,1.76,139.91,139.89,0.71]
[1763647580286,7.14898484,139.88,139.81,12.35817854]
[1763647580491,19.50716338,139.88,139.83,12.35817854]
[1763647580675,7.14898484,139.88,139.84,12.35817854]
[1763647580878,1.78,139.87,139.84,12.35817854]
[1763647581080,18.12096,139.9,139.85,13.06817854]
[1763647581272,1.78,139.94,139.89,12.35817854]
[1763647581475,1.78,139.94,139.9,12.35817854]
[1763647581698,12.35817854,139.97,139.91,12.35817854]
[1763647581993,12.35817854,139.94,139.86,0.71]
[1763647582192,1.78,139.93,139.88,12.35817854]
[1763647582494,19.50511964,139.92,139.87,0.71]
[1763647582714,19.50511964,139.92,139.87,7.85947052]
[1763647582999,19.50511964,139.92,139.84,17.87675758]
[1763647583000,12.35817854,139.9,139.84,17.87675758]
[1763647583194,12.35817854,139.88,139.83,0.71]
[1763647583399,1.78,139.89,139.83,0.71]
[1763647583400,19.90096,139.89,139.83,0.71]
[1763647583699,12.35817854,139.86,139.79,0.71]
[1763647583883,14.13817854,139.85,139.79,13.06817854]
[1763647584193,1.78,139.85,139.81,12.35817854]
[1763647584497,1.78,139.85,139.82,19.51023117]
[1763647584680,1.78,139.85,139.82,37.39036276]
[1763647584884,1.78,139.85,139.83,0.71]
[1763647585094,12.35817854,139.92,139.84,12.35817854]
[1763647585394,14.13817854,139.91,139.85,12.35817854]
[1763647585578,1.78,139.91,139.86,13.06817854]
[1763647585780,12.35817854,139.93,139.87,12.35817854]
[1763647586100,1.78,139.92,139.88,12.35817854]
[1763647586395,1.78,139.92,139.88,13.06817854]
[1763647586581,1.78,139.92,139.89,0.71]
[1763647586995,12.35817854,139.93,139.89,0.71]
[1763647587185,1.78,139.91,139.89,0.71]
[1763647587594,19.50368049,139.95,139.89,13.06817854]
[1763647587894,1.78,139.94,139.89,13.06817854]
[1763647588095,1.78,139.94,139.9,0.71]
[1763647588515,1.99999999,140.05,139.91,37.3742603]
[1763647588516,12.35817854,139.96,139.91,37.3742603]
[1763647588675,1.78,139.95,139.92,0.71]
[1763647590400,1.78,139.95,139.93,7.14643035]
[1763647590606,1.78,139.95,139.92,7.85672639]
[1763647590904,14.13817854,139.95,139.92,7.85672639]
[1763647591114,8.9254278,139.95,139.9,0.71]
[1763647591284,8.9254278,139.95,139.91,0.71]
[1763647591285,12.35817854,139.94,139.91,0.71]
[1763647591601,14.13817854,139.95,139.91,0.71]
[1763647591776,14.13817854,139.95,139.89,19.50658767]
[1763647591777,12.35817854,139.94,139.89,19.50658767]
[1763647591976,12.35817854,139.94,139.9,0.71]
[1763647592204,14.13817854,139.95,139.9,0.71]
[1763647592400,12.35817854,139.95,139.91,7.14745193]
[1763647592700,12.35817854,139.92,139.86,13.06817854]
[1763647593025,1.78,139.91,139.87,0.71]
[1763647593191,1.78,139.91,139.87,13.06817854]
[1763647593516,0.67,140.0,139.9,12.35817854]
[1763647593718,13.02817854,140.0,139.94,12.35817854]
[1763647594009,0.67,140.03,139.99,12.35817854]
[1763647594211,1.78,140.01,139.93,18.12096]
[1763647594409,1.78,140.01,139.9,22.85700623]
[1763647594410,12.35817854,140.0,139.94,13.06817854]
[1763647594576,12.35817854,139.98,139.92,12.35817854]
[1763647594909,12.35817854,139.98,139.9,0.71]
[1763647594910,1.78,139.97,139.93,13.06817854]
[1763647595399,1.78,139.97,139.91,12.35817854]
[1763647595400,14.80817854,139.97,139.91,12.35817854]
[1763647595600,14.80817854,139.97,139.91,13.06817854]
[1763647595601,2.45,139.97,139.91,13.06817854]
[1763647595902,0.67,139.96,139.88,0.71]
[1763647596107,0.67,139.96,139.89,12.35817854]
[1763647596276,1.78,139.97,139.9,12.35817854]
[1763647596474,1.78,139.96,139.92,19.50511964]
[1763647596674,7.14387769,139.98,139.92,19.50511964]
[1763647596675,1.78,139.95,139.92,19.50511964]
[1763647596898,1.78,139.95,139.92,7.8569411]
[1763647597083,12.35817854,139.98,139.93,13.06817854]
[1763647597277,2.45,139.97,139.92,12.35817854]
[1763647597484,14.80817854,139.97,139.92,0.71]
[1763647597684,12.35817854,139.96,139.92,0.71]
[1763647598083,13.02817854,139.95,139.89,7.85842054]
[1763647598285,12.35817854,139.95,139.9,12.35817854]
[1763647598488,1.78,139.94,139.9,20.21567715]
[1763647598711,1.78,139.94,139.91,0.71]
[1763647599011,1.78,139.94,139.91,13.06817854]
[1763647599386,18.52766417,140.0,139.93,12.35817854]
[1763647599587,12.35817854,139.98,139.93,12.35817854]
[1763647599782,12.35817854,139.98,139.94,0.71]
[1763647599981,7.81292121,140.0,139.94,0.71]
[1763647600186,0.67,140.03,139.97,12.35817854]
[1763647600497,1.78,140.02,139.99,7.14336738]
[1763647600688,1.78,140.02,139.99,19.50154592]
[1763647600888,1.78,140.02,139.99,20.21154592]
[1763647601117,19.4985502,140.05,140.0,13.06817854]
[1763647601413,0.87,140.06,140.01,12.35817854]
[1763647601414,1.78,140.03,140.01,12.35817854]
[1763647601723,1.78,140.04,140.01,0.71]
[1763647601908,1.78,140.04,139.98,13.06817854]
[1763647602077,1.78,140.04,140.0,12.35817854]
[1763647602510,21.94925479,140.04,139.99,12.35817854]
[1763647602714,1.78,140.04,139.99,12.35817854]
[1763647602883,8.92083233,140.04,140.0,12.35817854]
[1763647603082,1.78,140.04,139.99,12.35817854]
[1763647603306,13.02817854,140.03,139.98,12.35817854]
[1763647603481,12.35817854,140.03,139.98,12.35817854]
[1763647603686,21.27907501,140.04,139.98,13.06817854]
[1763647604113,12.35817854,140.03,139.98,13.06817854]
[1763647604290,12.35817854,140.02,139.95,0.71]
[1763647604491,8.92255742,140.01,139.96,19.5028276]
[1763647604702,8.92255742,140.01,139.97,12.35817854]
[1763647604895,13.02817854,140.0,139.94,19.50394205]
[1763647605113,13.02817854,140.0,139.93,0.71]
[1763647605305,13.02817854,140.0,139.95,12.35817854]
[1763647606011,13.02817854,140.0,139.95,13.06817854]
[1763647606200,8.92255742,140.01,139.96,0.71]
[1763647606400,21.95073596,140.01,139.95,12.35817854]
[1763647606613,12.35817854,139.99,139.93,0.71]
[1763647606811,1.78,139.98,139.93,13.06817854]
[1763647607100,1.78,139.98,139.94,12.35817854]
[1763647607310,13.02817854,140.0,139.95,12.35817854]
[1763647607516,1.76,139.99,139.96,12.35817854]
[1763647607821,14.11817854,139.99,139.9,20.61096]
[1763647607997,24.99838247,140.01,139.91,7.85735985]
[1763647607998,12.35817854,139.97,139.91,7.85735985]
[1763647608322,2.43,139.98,139.91,20.21553839]
[1763647608323,12.35817854,139.96,139.91,20.21553839]
[1763647608526,1.76,139.95,139.92,12.35817854]
[1763647608706,1.76,139.95,139.93,12.35817854]
[1763647608910,0.67,140.0,139.93,13.06817854]
[1763647609110,14.11817854,139.99,139.94,12.35817854]
[1763647609316,1.76,139.98,139.96,12.35817854]
[1763647609701,12.35817854,140.01,139.91,60.75324934]
[1763647609902,1.76,140.0,139.92,0.71]
[1763647610102,14.11817854,140.0,139.92,0.71]
[1763647610338,12.35817854,139.99,139.94,12.35817854]
[1763647610505,12.35817854,139.98,139.94,7.14591967]
[1763647610701,17.85643242,140.01,139.94,7.14591967]
[1763647610702,1.76,140.01,139.97,12.35817854]
[1763647610898,14.11817854,140.04,139.99,12.35817854]
[1763647611325,2.45,140.04,139.99,13.02817854]
[1763647611500,0.69,140.03,139.98,12.35817854]
[1763647611703,14.11817854,140.04,139.98,12.35817854]
[1763647611917,14.11817854,140.04,139.98,13.02817854]
[1763647612111,25.68107461,140.05,139.98,13.02817854]
[1763647612112,0.69,140.05,139.99,12.35817854]
[1763647612315,1.76,140.04,140.0,12.35817854]
[1763647612526,12.55817854,140.06,140.02,7.14183688]
[1763647612823,1.76,140.05,140.02,19.50001542]
[1763647613125,1.76,140.05,140.0,17.85646354]
[1763647613126,1.76,140.05,140.01,12.35817854]
[1763647613309,1.76,140.05,140.02,0.67]
[1763647613514,1.76,140.05,140.02,13.02817854]
[1763647614719,8.90032669,140.05,140.01,12.35817854]
[1763647615018,21.94850523,140.05,139.98,0.67]
[1763647615220,12.35817854,140.03,139.99,12.35817854]
[1763647615418,1.76,140.02,139.99,12.35817854]
[1763647615731,1.76,140.02,139.99,0.67]
[1763647615912,1.76,140.02,139.97,25.00513699]
[1763647616116,1.75999923,140.02,139.98,13.02817854]
[1763647616317,1.75999923,140.02,139.99,7.14336738]
[1763647616523,1.75999923,140.02,139.98,20.17184974]
[1763647617025,14.11817777,140.02,139.98,7.1436712]
[1763647617205,0.89,140.06,139.99,0.67]
[1763647617405,12.35817854,140.04,139.99,13.02817854]
[1763647617606,14.11817854,140.05,140.0,0.67]
[1763647617803,14.11817854,140.05,140.0,13.02817854]
[1763647618207,0.2,140.06,140.04,7.1408169]
[1763647618426,1.96,140.06,140.04,7.1408169]
[1763647618806,0.2,140.06,140.05,13.02817854]
[1763647619203,3.70346476,140.1,140.05,13.02817854]
[1763647619408,3.70346476,140.1,140.09,12.35817854]
[1763647619808,3.70346476,140.1,140.09,13.02817854]
[1763647620205,3.70346476,140.1,140.09,20.16644679]
[1763647620406,0.2,140.17,140.1,0.67]
[1763647620611,0.2,140.17,140.16,12.35817854]
[1763647621009,0.2,140.17,140.11,3.75999999]
[1763647621010,0.2,140.17,140.13,0.67]
[1763647621210,0.2,140.17,140.1,13.02817854]
[1763647621211,12.35817854,140.15,140.1,13.02817854]
[1763647621445,12.35817854,140.13,140.08,0.67]
[1763647621645,1.76,140.15,140.08,0.67]
[1763647621646,0.69,140.14,140.08,0.67]
[1763647621811,8.02437008,140.17,140.1,12.35817854]
[1763647622010,8.02437008,140.17,140.07,12.35817854]
[1763647622011,12.35817854,140.12,140.07,12.35817854]
[1763647622327,12.35817854,140.12,140.03,7.14132685]
[1763647622328,14.11817854,140.12,140.03,7.14132685]
[1763647622508,12.35817854,140.09,140.04,12.35817854]
[1763647622712,12.35817854,140.07,140.01,0.67]
[1763647622938,0.69,140.08,140.01,12.35817854]
[1763647623232,1.76,140.06,140.01,0.67]
[1763647623410,1.76,140.06,140.02,13.02817854]
[1763647623807,7.82638867,140.13,140.05,12.35817854]
[1763647624014,12.35817854,140.12,140.07,12.35817854]
[1763647624245,14.11817854,140.12,140.07,0.67]
[1763647624415,1.76,140.12,140.08,12.35817854]
[1763647624617,21.254956,140.12,140.08,12.35817854]
[1763647624834,13.04817854,140.11,140.04,0.67]
[1763647625140,13.04817854,140.11,140.06,12.35817854]
[1763647625343,18.32096,140.17,140.1,12.35817854]
[1763647625344,12.35817854,140.15,140.1,12.35817854]
[1763647625651,0.2,140.17,140.14,12.35817854]
[1763647625834,2.65,140.17,140.13,12.35817854]
[1763647626215,1.96,140.17,140.14,12.35817854]
[1763647626452,1.96,140.17,140.15,7.13521227]
[1763647626732,0.2,140.17,140.15,12.35817854]
[1763647627320,0.2,140.17,140.09,2.43]
[1763647627321,0.69,140.16,140.09,2.43]
[1763647627555,0.69,140.16,140.04,18.12096]
[1763647627556,12.35817854,140.14,140.04,18.12096]
[1763647627726,12.35817854,140.15,140.1,12.35817854]
[1763647627936,1.76,140.14,140.06,0.67]
[1763647628142,14.11817854,140.14,140.06,0.67]
[1763647628336,14.11817854,140.14,140.09,12.35817854]
[1763647628543,0.69,140.13,140.04,0.67]
[1763647628744,12.35817854,140.1,140.05,12.35817854]
[1763647629043,12.35817854,140.1,140.02,27.02279688]
[1763647629044,1.76,140.1,140.06,0.67]
[1763647629234,1.76,140.1,140.05,7.08136345]
[1763647629629,9.53136345,140.12,140.07,7.08136345]
[1763647629841,7.08136345,140.11,140.07,7.08136345]
[1763647630022,7.77136345,140.11,140.07,7.08136345]
[1763647630223,1.76,140.12,140.08,7.75136345]
[1763647630426,0.69,140.16,140.11,7.08136345]
[1763647630747,7.28136345,140.17,140.09,0.67]
[1763647630748,0.2,140.17,140.15,7.08136345]
[1763647630929,0.2,140.17,140.16,7.08136345]
[1763647631531,0.2,140.17,140.13,0.67]
[1763647631736,0.2,140.17,140.15,7.08136345]
[1763647631946,0.2,140.17,140.12,7.08136345]
[1763647631947,15.10564921,140.17,140.12,7.08136345]
[1763647632133,7.08136345,140.16,140.11,7.08136345]
[1763647632646,7.08136345,140.12,140.04,0.67]
[1763647632869,20.57096,140.15,139.97,1.99999999]
[1763647632870,7.08136345,140.09,140.01,0.67]
[1763647633023,1.76,140.11,139.93,50.0]
[1763647633024,7.08136345,140.05,140.0,7.08136345]
[1763647633226,7.08136345,140.05,139.98,0.67]
[1763647633227,7.08136345,140.03,139.98,7.08136345]
[1763647633528,7.08136345,140.0,139.96,14.22577903]
[1763647633722,7.08136345,140.0,139.92,0.67]
[1763647633922,2.45,139.99,139.93,7.08136345]
[1763647634126,8.84136345,139.98,139.92,7.8169411]
[1763647634324,14.2259909,139.97,139.92,7.08136345]
[1763647634528,9.78882769,140.04,139.94,7.08136345]
[1763647634529,7.77136345,140.0,139.94,7.08136345]
[1763647634735,7.08136345,139.98,139.93,7.08136345]
[1763647635051,8.84136345,139.99,139.94,7.08136345]
[1763647635422,0.69,140.0,139.91,7.08136345]
[1763647635423,7.08136345,139.96,139.91,7.08136345]
[1763647635643,7.08136345,139.95,139.9,7.08136345]
[1763647635849,1.76,139.94,139.9,7.08136345]
[1763647636029,1.76,139.94,139.9,0.67]
[1763647636236,1.76,139.94,139.91,7.08136345]
[1763647636466,0.69,140.0,139.93,7.14643035]
[1763647636659,7.08136345,139.94,139.86,0.67]
[1763647636867,8.84136345,139.95,139.9,7.08136345]
[1763647637044,8.84136345,139.95,139.86,20.30464758]
[1763647637045,7.77136345,139.99,139.94,7.08136345]
[1763647637249,7.14245113,140.01,139.89,18.12096]
[1763647637250,1.76,139.97,139.89,18.12096]
[1763647637564,7.08136345,139.95,139.89,0.67]
[1763647637853,7.08136345,139.94,139.89,7.08136345]
[1763647638070,8.84136345,139.93,139.88,7.08136345]
[1763647638256,1.76,139.93,139.89,7.08136345]
[1763647638451,7.08136345,139.93,139.88,7.08136345]
[1763647638649,8.84136345,139.93,139.88,7.08136345]
[1763647638829,9.53136345,139.93,139.88,7.08136345]
[1763647639030,1.76,139.93,139.89,7.75136345]
[1763647639254,2.45,139.93,139.89,7.08136345]
[1763647639446,1.76,139.93,139.89,7.75136345]
[1763647639750,8.84136345,139.94,139.89,7.75136345]
[1763647639954,18.12096,139.99,139.93,7.08136345]
[1763647640139,18.12096,139.99,139.9,0.67]
[1763647640140,0.71,139.98,139.9,0.67]
[1763647640330,7.08136345,139.97,139.93,7.08136345]
[1763647640528,7.08136345,139.97,139.94,7.14591967]
[1763647640870,1.76,139.98,139.94,32.80208231]
[1763647641033,8.84136345,140.0,139.96,7.08136345]
[1763647641553,7.08136345,139.98,139.91,0.71]
[1763647641748,8.84136345,139.98,139.91,0.71]
[1763647641946,8.84136345,139.98,139.93,7.08136345]
[1763647642146,7.08136345,139.97,139.92,7.08136345]
[1763647642440,7.08136345,139.97,139.88,18.12096]
[1763647642441,7.08136345,139.95,139.9,7.08136345]
[1763647642641,0.71,139.97,139.92,7.08136345]
[1763647642938,9.55136345,139.97,139.93,7.08136345]
[1763647643146,9.55136345,139.97,139.88,25.02144695]
[1763647643147,2.47,139.97,139.9,0.71]
[1763647643351,9.55136345,139.97,139.92,7.08136345]
[1763647643934,0.71,140.0,139.94,7.08136345]
[1763647644136,8.84136345,139.99,139.93,0.71]
[1763647644334,8.84136345,139.99,139.94,7.08136345]
[1763647644639,8.84136345,139.99,139.93,7.08136345]
[1763647644640,7.08136345,139.97,139.93,7.08136345]
[1763647644845,0.71,139.98,139.92,7.08136345]
[1763647645047,7.08136345,139.94,139.88,7.14898484]
[1763647645275,7.08136345,139.93,139.89,7.08136345]
[1763647645733,7.08136345,139.92,139.87,14.94070577]
[1763647645937,7.79136345,139.92,139.87,14.23070577]
[1763647646139,0.71,139.91,139.84,0.71]
[1763647646352,0.71,139.91,139.81,0.71]
[1763647646353,7.08136345,139.87,139.81,0.71]
[1763647646644,7.08136345,139.88,139.83,14.2329046]
[1763647646970,7.08136345,139.87,139.82,7.08136345]
[1763647647270,7.8586812,139.89,139.79,7.18136345]
[1763647647271,7.08136345,139.84,139.79,7.18136345]
[1763647647449,8.84136345,139.83,139.79,0.1]
[1763647647780,1.76,139.83,139.79,14.33493026]
[1763647648456,1.76,139.83,139.79,0.1]
[1763647648457,7.79136345,139.82,139.79,0.1]
[1763647648682,0.71,139.8,139.79,0.1]
[1763647648834,7.79136345,139.8,139.79,0.1]
[1763647649894,17.58019114,139.8,139.79,0.1]
[1763647650072,19.34019114,139.8,139.79,0.1]
[1763647650661,24.73326696,139.8,139.79,0.1]
[1763647650982,9.55136345,139.8,139.79,0.1]
[1763647651168,0.71,139.8,139.79,0.1]
[1763647651369,7.08136345,139.82,139.79,0.1]
[1763647651697,1.76,139.82,139.79,0.1]
[1763647651900,18.12096,139.85,139.79,0.1]
[1763647651901,1.76,139.84,139.81,7.08136345]
[1763647652202,1.76,139.86,139.8,0.71]
[1763647652360,2.45,139.86,139.79,7.18136345]
[1763647652560,7.08136345,139.85,139.81,7.15256419]
[1763647653174,1.76,139.84,139.82,7.08136345]
[1763647653371,7.08136345,139.86,139.82,7.08136345]
[1763647653372,1.76,139.86,139.82,7.79136345]
[1763647653963,1.76,139.86,139.82,7.08136345]
[1763647654181,8.84136345,139.86,139.82,7.08136345]
[1763647654511,7.08136345,139.85,139.79,0.1]
[1763647654785,7.08136345,139.83,139.79,0.1]
[1763647654967,0.69,139.84,139.72,18.12096]
[1763647655162,0.69,139.84,139.68,50.0]
[1763647655163,18.12096,139.81,139.68,7.08136345]
[1763647655363,7.08136345,139.78,139.73,7.79136345]
[1763647655593,8.84136345,139.78,139.74,0.71]
[1763647655889,7.08136345,139.76,139.71,0.71]
[1763647656195,0.69,139.76,139.7,7.08136345]
[1763647656363,19.88096,139.78,139.72,7.08136345]
[1763647656563,19.88096,139.78,139.73,7.08136345]
[1763647656564,7.08136345,139.77,139.73,7.08136345]
[1763647656762,1.76,139.76,139.72,14.2385082]
[1763647657184,7.77136345,139.75,139.7,7.15769642]
[1763647657405,9.53136345,139.74,139.68,7.86913312]
[1763647657567,1.76,139.73,139.68,7.15913312]
[1763647657765,1.76,139.72,139.69,7.08136345]
[1763647657971,1.76,139.72,139.68,7.15913312]
[1763647658206,1.76,139.72,139.7,7.08136345]
[1763647658396,1.76,139.72,139.69,7.79136345]
[1763647658772,1.76,139.72,139.69,7.08136345]
[1763647658973,1.76,139.72,139.68,7.15900792]
[1763647659199,7.08136345,139.69,139.65,0.1]
[1763647659401,8.84136345,139.68,139.65,0.1]
[1763647659697,7.08136345,139.66,139.65,0.1]
[1763647659900,18.81096,139.72,139.65,0.81]
[1763647660202,7.08136345,139.66,139.62,1.53593088]
[1763647660388,7.08136345,139.64,139.62,1.53593088]
[1763647660623,8.86136345,139.63,139.62,1.53593088]
[1763647660800,8.94178471,139.63,139.62,1.53593088]
[1763647660970,9.78882769,139.66,139.62,1.53593088]
[1763647661171,7.08136345,139.63,139.62,1.53593088]
[1763647661489,8.86136345,139.63,139.62,1.53593088]
[1763647661695,9.55136345,139.63,139.62,1.53593088]
[1763647662275,2.47,139.63,139.62,1.53593088]
[1763647662508,9.55136345,139.63,139.62,1.53593088]
[1763647662674,26.50197585,139.63,139.62,1.53593088]
[1763647663312,19.4206124,139.63,139.62,1.53593088]
[1763647663476,26.50197585,139.63,139.62,1.53593088]
[1763647663672,9.55136345,139.63,139.62,1.53593088]
[1763647663876,8.86136345,139.63,139.62,1.53593088]
[1763647664084,9.55136345,139.63,139.62,0.87593088]
[1763647664410,27.67232345,139.63,139.62,0.87593088]
[1763647664785,44.62293585,139.63,139.62,0.87593088]
[1763647665795,35.6615724,139.63,139.62,0.87593088]
[1763647666107,44.52293585,139.63,139.62,0.87593088]
[1763647666513,44.52293585,139.63,139.62,1e-08]
[1763647667170,37.4415724,139.63,139.62,1e-08]
[1763647667373,44.52293585,139.63,139.62,1e-08]
[1763647668152,1.78,139.63,139.62,1e-08]
[1763647668296,9.78882769,139.6,139.48,0.71]
[1763647668598,9.78882769,139.62,139.5,0.71]
[1763647668599,18.12096,139.57,139.5,0.71]
[1763647668784,1.78,139.56,139.51,7.08136345]
[1763647668971,1.78,139.56,139.5,0.71]
[1763647668972,9.45136345,139.56,139.49,0.71]
[1763647669176,1.78,139.55,139.5,0.71]
[1763647669505,7.08136345,139.54,139.5,0.71]
[1763647670009,7.08136345,139.53,139.48,7.08136345]
[1763647670298,1.78,139.52,139.47,7.08136345]
[1763647670502,18.12096,139.57,139.51,7.08136345]
[1763647670702,8.86136345,139.54,139.49,7.08136345]
[1763647670882,8.86136345,139.53,139.46,7.88039013]
[1763647671083,8.86136345,139.53,139.48,7.08136345]
[1763647671402,7.08136345,139.52,139.47,0.7]
[1763647671584,18.12096,139.55,139.48,7.08136345]
[1763647671913,1.78,139.54,139.49,0.7]
[1763647672114,8.86136345,139.54,139.49,7.78136345]
[1763647672316,7.08136345,139.53,139.49,0.7]
[1763647672613,1.78,139.54,139.49,0.7]
[1763647672787,0.59,139.56,139.5,14.24982223]
[1763647672788,7.08136345,139.55,139.5,14.24982223]
[1763647673134,1.78,139.54,139.5,14.24982223]
[1763647673349,27.90978769,139.56,139.48,0.7]
[1763647673506,1.78,139.55,139.44,0.7]
[1763647673697,2.37,139.55,139.45,0.7]
[1763647673896,7.08136345,139.51,139.46,7.08136345]
[1763647674089,1.78,139.5,139.45,0.7]
[1763647674316,18.12096,139.53,139.47,7.08136345]
[1763647674497,2.37,139.52,139.45,0.7]
[1763647674692,7.08136345,139.5,139.47,7.17000071]
[1763647674906,7.08136345,139.5,139.46,7.08136345]
[1763647675117,18.71096,139.49,139.35,0.1]
[1763647675436,25.67603154,139.52,139.38,0.7]
[1763647675599,1.78,139.51,139.38,0.7]
[1763647675789,7.16700532,139.53,139.38,18.82096]
[1763647675790,1.78,139.5,139.38,18.82096]
[1763647676116,19.90096,139.5,139.38,0.7]
[1763647676418,1.78,139.5,139.39,18.32096]
[1763647676617,1.78,139.5,139.46,7.08136345]
[1763647676815,1.78,139.5,139.48,7.08136345]
[1763647676999,1.78,139.5,139.41,7.17308657]
[1763647677344,7.08136345,139.49,139.41,7.17308657]